[Event "Titled Tuesday Blitz January 03 Late 2023"]
[White "Lenderman, Aleksandr"]
[Black "Tristan, Leonardo"]
[WhiteFideId "2021285"]
[BlackFideId "113816"]
[WhiteElo "2572"]
[BlackElo "2545"]
[Result "1-0"]
[Round "05"]
[TimeControl "180+2"]
[Date "2023.01.03"]
[WhiteClock "0:00:59"]
[BlackClock "0:00:15"]

1. Nf3 {[%clk 0:03:00]}  d5 {[%clk 0:03:00]} 2. e3 {[%clk 0:03:01]}  Nf6 {[%clk 0:03:00]} 3. c4 {[%clk 0:03:01]}  e6 {[%clk 0:03:00]} 4. Nc3 {[%clk 0:03:00]}  b6 {[%clk 0:03:00]} 5. cxd5 {[%clk 0:02:59]}  exd5 {[%clk 0:03:00]} 6. g3 {[%clk 0:02:59]}  Bd6 {[%clk 0:02:50]} 7. Bg2 {[%clk 0:02:59]}  O-O {[%clk 0:02:50]} 8. O-O {[%clk 0:02:59]}  Bb7 {[%clk 0:02:50]} 9. b3 {[%clk 0:02:59]}  Re8 {[%clk 0:02:44]} 10. Bb2 {[%clk 0:03:00]}  Nbd7 {[%clk 0:02:35]} 11. Rc1 {[%clk 0:03:00]}  a6 {[%clk 0:02:33]} 12. Ne2 {[%clk 0:02:59]}  a5 {[%clk 0:02:24]} 13. Ned4 {[%clk 0:02:57]}  Bf8 {[%clk 0:02:04]} 14. Nc6 {[%clk 0:02:48]}  Qc8 {[%clk 0:02:03]} 15. Bh3 {[%clk 0:02:48]}  Bxc6 {[%clk 0:01:57]} 16. Rxc6 {[%clk 0:02:47]}  Qb7 {[%clk 0:01:57]} 17. Rc1 {[%clk 0:02:12]}  a4 {[%clk 0:01:43]} 18. bxa4 {[%clk 0:02:07]}  c5 {[%clk 0:01:43]} 19. Qc2 {[%clk 0:02:00]}  g6 {[%clk 0:01:14]} 20. Bxd7 {[%clk 0:01:49]}  Nxd7 {[%clk 0:01:14]} 21. Bc3 {[%clk 0:01:50]}  Bg7 {[%clk 0:01:08]} 22. d4 {[%clk 0:01:49]}  c4 {[%clk 0:01:05]} 23. Rb1 {[%clk 0:01:45]}  Qc6 {[%clk 0:01:00]} 24. Rb5 {[%clk 0:01:44]}  Ra6 {[%clk 0:00:54]} 25. Rfb1 {[%clk 0:01:43]}  Rea8 {[%clk 0:00:54]} 26. a5 {[%clk 0:01:42]}  bxa5 {[%clk 0:00:54]} 27. a4 {[%clk 0:01:42]}  h6 {[%clk 0:00:46]} 28. h4 {[%clk 0:01:41]}  Qe6 {[%clk 0:00:46]} 29. Kg2 {[%clk 0:01:39]}  Nf6 {[%clk 0:00:41]} 30. Be1 {[%clk 0:01:23]}  Ne4 {[%clk 0:00:41]} 31. Ng1 {[%clk 0:01:21]}  Bf8 {[%clk 0:00:34]} 32. Ne2 {[%clk 0:01:19]}  Nd6 {[%clk 0:00:31]} 33. Nf4 {[%clk 0:01:18]}  Nxb5 {[%clk 0:00:29]} 34. axb5 {[%clk 0:01:03]}  Qe4+ {[%clk 0:00:18]} 35. Qxe4 {[%clk 0:01:02]}  dxe4 {[%clk 0:00:19]} 36. bxa6 {[%clk 0:01:03]}  Rxa6 {[%clk 0:00:20]} 37. Rb8 {[%clk 0:01:00]}  Kg7 {[%clk 0:00:16]} 38. Bc3 {[%clk 0:01:00]}  a4 {[%clk 0:00:15]} 39. d5+ {[%clk 0:00:59]} 1-0


[Site "https://www.chess.com"]

[Event "Titled Tuesday Blitz January 03 Late 2023"]
[White "Makarian, Rudik"]
[Black "Korchmar, Vasiliy"]
[WhiteFideId "44105681"]
[BlackFideId "24131750"]
[WhiteElo "2545"]
[BlackElo "2438"]
[Result "1-0"]
[Round "05"]
[TimeControl "180+2"]
[Date "2023.01.03"]
[WhiteClock "0:00:18"]
[BlackClock "0:00:01"]

1. d4 {[%clk 0:02:59]}  Nf6 {[%clk 0:02:57]} 2. c4 {[%clk 0:02:59]}  c6 {[%clk 0:02:56]} 3. Nf3 {[%clk 0:02:56]}  d5 {[%clk 0:02:57]} 4. Nc3 {[%clk 0:02:57]}  e6 {[%clk 0:02:56]} 5. g3 {[%clk 0:02:46]}  dxc4 {[%clk 0:02:47]} 6. Bg2 {[%clk 0:02:47]}  Nbd7 {[%clk 0:02:44]} 7. O-O {[%clk 0:02:46]}  Bd6 {[%clk 0:02:38]} 8. Bg5 {[%clk 0:02:17]}  O-O {[%clk 0:02:26]} 9. Nd2 {[%clk 0:02:17]}  Nb6 {[%clk 0:02:21]} 10. Qc2 {[%clk 0:02:11]}  h6 {[%clk 0:01:58]} 11. Bxf6 {[%clk 0:02:11]}  Qxf6 {[%clk 0:01:59]} 12. Nce4 {[%clk 0:02:04]}  Qe7 {[%clk 0:02:00]} 13. Nxc4 {[%clk 0:02:03]}  Nxc4 {[%clk 0:01:52]} 14. Qxc4 {[%clk 0:02:04]}  e5 {[%clk 0:01:43]} 15. d5 {[%clk 0:02:00]}  cxd5 {[%clk 0:01:36]} 16. Qxd5 {[%clk 0:01:59]}  Bc7 {[%clk 0:01:31]} 17. Rac1 {[%clk 0:01:59]}  Bb6 {[%clk 0:01:27]} 18. Qd6 {[%clk 0:01:54]}  Re8 {[%clk 0:01:21]} 19. Rfd1 {[%clk 0:01:39]}  Bg4 {[%clk 0:01:20]} 20. Nc3 {[%clk 0:01:26]}  Bd4 {[%clk 0:01:10]} 21. Qxe7 {[%clk 0:01:24]}  Rxe7 {[%clk 0:01:11]} 22. h3 {[%clk 0:01:19]}  Bxc3 {[%clk 0:01:05]} 23. hxg4 {[%clk 0:01:15]}  Bxb2 {[%clk 0:01:04]} 24. Rb1 {[%clk 0:01:16]}  Bd4 {[%clk 0:01:00]} 25. Bxb7 {[%clk 0:01:13]}  Rb8 {[%clk 0:00:59]} 26. Bd5 {[%clk 0:01:13]}  Rxb1 {[%clk 0:00:59]} 27. Rxb1 {[%clk 0:01:14]}  Bb6 {[%clk 0:00:57]} 28. e3 {[%clk 0:01:09]}  g6 {[%clk 0:00:55]} 29. Kg2 {[%clk 0:01:07]}  Kg7 {[%clk 0:00:55]} 30. Be4 {[%clk 0:01:03]}  Rd7 {[%clk 0:00:51]} 31. Rb2 {[%clk 0:01:01]}  Kf6 {[%clk 0:00:38]} 32. Rc2 {[%clk 0:01:01]}  Rc7 {[%clk 0:00:34]} 33. Rd2 {[%clk 0:01:00]}  Ke7 {[%clk 0:00:34]} 34. Kf3 {[%clk 0:00:59]}  Rd7 {[%clk 0:00:32]} 35. Rc2 {[%clk 0:00:54]}  Rc7 {[%clk 0:00:32]} 36. Rb2 {[%clk 0:00:50]}  Ke6 {[%clk 0:00:24]} 37. Bc2 {[%clk 0:00:38]}  f5 {[%clk 0:00:24]} 38. Bb3+ {[%clk 0:00:38]}  Kf6 {[%clk 0:00:24]} 39. gxf5 {[%clk 0:00:38]}  gxf5 {[%clk 0:00:25]} 40. Rd2 {[%clk 0:00:34]}  Ke7 {[%clk 0:00:20]} 41. Rd5 {[%clk 0:00:33]}  Rc5 {[%clk 0:00:20]} 42. Rd1 {[%clk 0:00:33]}  Rc7 {[%clk 0:00:20]} 43. Rh1 {[%clk 0:00:33]}  Rc6 {[%clk 0:00:20]} 44. Rh5 {[%clk 0:00:33]}  Rf6 {[%clk 0:00:19]} 45. Ke2 {[%clk 0:00:31]}  Bc5 {[%clk 0:00:08]} 46. Bc2 {[%clk 0:00:27]}  e4 {[%clk 0:00:08]} 47. g4 {[%clk 0:00:24]}  Kd6 {[%clk 0:00:04]} 48. gxf5 {[%clk 0:00:22]}  Ke5 {[%clk 0:00:03]} 49. Rh4 {[%clk 0:00:22]}  Rxf5 {[%clk 0:00:02]} 50. Rxe4+ {[%clk 0:00:22]}  Kd5 {[%clk 0:00:03]} 51. Rh4 {[%clk 0:00:20]}  Rf6 {[%clk 0:00:03]} 52. Rh5+ {[%clk 0:00:21]}  Kd6 {[%clk 0:00:03]} 53. Bb3 {[%clk 0:00:19]}  Bb6 {[%clk 0:00:03]} 54. f4 {[%clk 0:00:19]}  Ke7 {[%clk 0:00:02]} 55. Kf3 {[%clk 0:00:19]}  Kf8 {[%clk 0:00:02]} 56. e4 {[%clk 0:00:19]}  Bc7 {[%clk 0:00:01]} 57. e5 {[%clk 0:00:18]} 1-0


[Site "https://www.chess.com"]

[Event "Titled Tuesday Blitz January 03 Late 2023"]
[White "Ibarra Jerez, Jose Carlos"]
[Black "Godzwon, Iwo"]
[WhiteFideId "2226332"]
[BlackFideId "21802483"]
[WhiteElo "2563"]
[BlackElo "2394"]
[Result "1-0"]
[Round "05"]
[TimeControl "180+2"]
[Date "2023.01.03"]
[WhiteClock "0:00:30"]
[BlackClock "0:01:03"]

1. e4 {[%clk 0:03:00]}  c5 {[%clk 0:02:57]} 2. Nc3 {[%clk 0:03:00]}  e6 {[%clk 0:02:56]} 3. Nge2 {[%clk 0:03:00]}  Nc6 {[%clk 0:02:55]} 4. d4 {[%clk 0:03:00]}  cxd4 {[%clk 0:02:56]} 5. Nxd4 {[%clk 0:03:01]}  Qc7 {[%clk 0:02:56]} 6. g3 {[%clk 0:03:01]}  Nf6 {[%clk 0:02:55]} 7. Bf4 {[%clk 0:02:53]}  Ne5 {[%clk 0:02:35]} 8. Ndb5 {[%clk 0:02:51]}  Qb8 {[%clk 0:02:35]} 9. Be2 {[%clk 0:02:47]}  a6 {[%clk 0:02:33]} 10. Qd4 {[%clk 0:02:44]}  d6 {[%clk 0:02:30]} 11. O-O-O {[%clk 0:02:27]}  axb5 {[%clk 0:01:57]} 12. Bxe5 {[%clk 0:02:24]}  Bd7 {[%clk 0:01:57]} 13. Bxf6 {[%clk 0:02:07]}  gxf6 {[%clk 0:01:57]} 14. Bxb5 {[%clk 0:01:47]}  Bxb5 {[%clk 0:01:55]} 15. Nxb5 {[%clk 0:01:47]}  Rxa2 {[%clk 0:01:55]} 16. Kb1 {[%clk 0:01:45]}  Ra6 {[%clk 0:01:55]} 17. Qxf6 {[%clk 0:01:39]}  Rg8 {[%clk 0:01:53]} 18. Rd3 {[%clk 0:01:31]}  Ra5 {[%clk 0:01:45]} 19. Rb3 {[%clk 0:01:19]}  Be7 {[%clk 0:01:40]} 20. Qc3 {[%clk 0:01:11]}  Bd8 {[%clk 0:01:41]} 21. Rd1 {[%clk 0:01:09]}  Qa8 {[%clk 0:01:28]} 22. Nxd6+ {[%clk 0:01:06]}  Kf8 {[%clk 0:01:28]} 23. Ra3 {[%clk 0:01:05]}  Rxa3 {[%clk 0:01:28]} 24. Qxa3 {[%clk 0:00:58]}  Qxa3 {[%clk 0:01:28]} 25. bxa3 {[%clk 0:00:59]}  b6 {[%clk 0:01:28]} 26. Ka2 {[%clk 0:00:48]}  Ke7 {[%clk 0:01:24]} 27. Nb5 {[%clk 0:00:45]}  Rg5 {[%clk 0:01:24]} 28. a4 {[%clk 0:00:43]}  Rc5 {[%clk 0:01:24]} 29. Kb3 {[%clk 0:00:43]}  h5 {[%clk 0:01:23]} 30. Rd3 {[%clk 0:00:41]}  h4 {[%clk 0:01:17]} 31. g4 {[%clk 0:00:33]}  Re5 {[%clk 0:01:11]} 32. Nd4 {[%clk 0:00:33]}  Rxe4 {[%clk 0:01:03]} 33. Nc6+ {[%clk 0:00:32]}  Kf6 {[%clk 0:01:04]} 34. Rf3+ {[%clk 0:00:29]}  Kg7 {[%clk 0:01:03]} 35. Nxd8 {[%clk 0:00:30]} 1-0


[Site "https://www.chess.com"]

[Event "Titled Tuesday Blitz January 03 Late 2023"]
[White "Oliveira, Silvio Eduardo"]
[Black "Jaracz, Pawel"]
[WhiteFideId "2111560"]
[BlackFideId "1102222"]
[WhiteElo "2297"]
[BlackElo "2467"]
[Result "1-0"]
[Round "05"]
[TimeControl "180+2"]
[Date "2023.01.03"]
[WhiteClock "0:00:49"]
[BlackClock "0:00:01"]

1. e4 {[%clk 0:03:00]}  c6 {[%clk 0:02:58]} 2. d4 {[%clk 0:02:59]}  d5 {[%clk 0:02:58]} 3. exd5 {[%clk 0:03:00]}  cxd5 {[%clk 0:02:58]} 4. Bd3 {[%clk 0:03:00]}  Nc6 {[%clk 0:02:59]} 5. c3 {[%clk 0:02:58]}  Nf6 {[%clk 0:02:58]} 6. h3 {[%clk 0:02:58]}  g6 {[%clk 0:02:58]} 7. Nf3 {[%clk 0:02:56]}  Bf5 {[%clk 0:02:58]} 8. Ne5 {[%clk 0:02:53]}  Bxd3 {[%clk 0:02:56]} 9. Nxd3 {[%clk 0:02:53]}  Bg7 {[%clk 0:02:55]} 10. O-O {[%clk 0:02:52]}  O-O {[%clk 0:02:55]} 11. Re1 {[%clk 0:02:48]}  Ne4 {[%clk 0:02:49]} 12. Bf4 {[%clk 0:02:48]}  Rc8 {[%clk 0:02:43]} 13. Nd2 {[%clk 0:02:43]}  Nd6 {[%clk 0:02:33]} 14. h4 {[%clk 0:02:39]}  h6 {[%clk 0:02:21]} 15. Qf3 {[%clk 0:02:32]}  e6 {[%clk 0:02:13]} 16. g4 {[%clk 0:02:33]}  Na5 {[%clk 0:02:04]} 17. Kg2 {[%clk 0:02:29]}  Nac4 {[%clk 0:02:03]} 18. Nxc4 {[%clk 0:02:26]}  Nxc4 {[%clk 0:01:59]} 19. h5 {[%clk 0:02:11]}  g5 {[%clk 0:01:57]} 20. Bg3 {[%clk 0:02:11]}  Qb6 {[%clk 0:01:51]} 21. Qe2 {[%clk 0:02:10]}  Rce8 {[%clk 0:01:47]} 22. f4 {[%clk 0:02:08]}  gxf4 {[%clk 0:01:36]} 23. Bxf4 {[%clk 0:02:08]}  Nd6 {[%clk 0:01:31]} 24. g5 {[%clk 0:02:06]}  hxg5 {[%clk 0:01:21]} 25. h6 {[%clk 0:02:02]}  Bf6 {[%clk 0:01:19]} 26. h7+ {[%clk 0:02:00]}  Kh8 {[%clk 0:01:13]} 27. Be5 {[%clk 0:02:00]}  Qd8 {[%clk 0:01:05]} 28. Rh1 {[%clk 0:02:00]}  Bxe5 {[%clk 0:00:55]} 29. Nxe5 {[%clk 0:01:58]}  Nf5 {[%clk 0:00:52]} 30. Raf1 {[%clk 0:01:55]}  Qf6 {[%clk 0:00:45]} 31. Rh5 {[%clk 0:01:50]}  Qg7 {[%clk 0:00:42]} 32. Nd7 {[%clk 0:01:47]}  Qg6 {[%clk 0:00:31]} 33. Rh2 {[%clk 0:01:39]}  Nh4+ {[%clk 0:00:22]} 34. Kh1 {[%clk 0:01:39]}  f5 {[%clk 0:00:22]} 35. Nxf8 {[%clk 0:01:35]}  Rxf8 {[%clk 0:00:23]} 36. Rg1 {[%clk 0:01:33]}  Qh6 {[%clk 0:00:17]} 37. Qe5+ {[%clk 0:01:32]}  Kxh7 {[%clk 0:00:17]} 38. Qc7+ {[%clk 0:01:29]}  Kg6 {[%clk 0:00:15]} 39. Qe7 {[%clk 0:01:26]}  Rf6 {[%clk 0:00:15]} 40. Qe8+ {[%clk 0:01:21]}  Kg7 {[%clk 0:00:14]} 41. Qe7+ {[%clk 0:01:21]}  Kg6 {[%clk 0:00:13]} 42. c4 {[%clk 0:01:19]}  f4 {[%clk 0:00:04]} 43. cxd5 {[%clk 0:01:16]}  exd5 {[%clk 0:00:05]} 44. Qe8+ {[%clk 0:01:14]}  Kg7 {[%clk 0:00:05]} 45. Qd7+ {[%clk 0:01:14]}  Kg6 {[%clk 0:00:05]} 46. Qxd5 {[%clk 0:01:10]}  Qh5 {[%clk 0:00:05]} 47. Qg8+ {[%clk 0:01:07]}  Kf5 {[%clk 0:00:05]} 48. Qc8+ {[%clk 0:01:04]}  Re6 {[%clk 0:00:05]} 49. Rh3 {[%clk 0:01:01]}  Kf6 {[%clk 0:00:03]} 50. Qd8+ {[%clk 0:00:57]}  Kg6 {[%clk 0:00:01]} 51. Qg8+ {[%clk 0:00:55]}  Kf6 {[%clk 0:00:01]} 52. Qf8+ {[%clk 0:00:52]}  Kg6 {[%clk 0:00:01]} 53. Qxf4 {[%clk 0:00:49]} 1-0


[Site "https://www.chess.com"]

[Event "Titled Tuesday Blitz January 03 Late 2023"]
[White "Babazada, Khazar"]
[Black "Garcia Ramos, Daniel"]
[WhiteFideId "13413554"]
[BlackFideId "32010311"]
[WhiteElo "2474"]
[BlackElo "2442"]
[Result "1-0"]
[Round "05"]
[TimeControl "180+2"]
[Date "2023.01.03"]
[WhiteClock "0:00:18"]
[BlackClock "0:00:05"]

1. e4 {[%clk 0:02:54]}  c6 {[%clk 0:02:47]} 2. d4 {[%clk 0:02:53]}  d5 {[%clk 0:02:48]} 3. Nc3 {[%clk 0:02:52]}  dxe4 {[%clk 0:02:48]} 4. Nxe4 {[%clk 0:02:53]}  Nf6 {[%clk 0:02:48]} 5. Nxf6+ {[%clk 0:02:52]}  exf6 {[%clk 0:02:49]} 6. c3 {[%clk 0:02:53]}  Bd6 {[%clk 0:02:50]} 7. Bd3 {[%clk 0:02:53]}  O-O {[%clk 0:02:50]} 8. Ne2 {[%clk 0:02:54]}  Re8 {[%clk 0:02:47]} 9. Qc2 {[%clk 0:02:54]}  h5 {[%clk 0:02:46]} 10. O-O {[%clk 0:02:54]}  h4 {[%clk 0:02:46]} 11. Bd2 {[%clk 0:02:53]}  h3 {[%clk 0:02:41]} 12. Ng3 {[%clk 0:02:51]}  hxg2 {[%clk 0:02:35]} 13. Rfe1 {[%clk 0:02:51]}  Be6 {[%clk 0:02:32]} 14. Qd1 {[%clk 0:02:51]}  g6 {[%clk 0:02:25]} 15. Qf3 {[%clk 0:02:51]}  Nd7 {[%clk 0:02:14]} 16. h4 {[%clk 0:02:51]}  Bd5 {[%clk 0:02:10]} 17. Qg4 {[%clk 0:02:49]}  Nf8 {[%clk 0:01:37]} 18. h5 {[%clk 0:02:41]}  Bxg3 {[%clk 0:01:35]} 19. Qxg3 {[%clk 0:02:40]}  Qd7 {[%clk 0:01:33]} 20. hxg6 {[%clk 0:02:38]}  fxg6 {[%clk 0:01:30]} 21. c4 {[%clk 0:02:25]}  Qh7 {[%clk 0:01:17]} 22. f3 {[%clk 0:02:17]}  Rxe1+ {[%clk 0:01:14]} 23. Rxe1 {[%clk 0:02:16]}  Qh1+ {[%clk 0:00:55]} 24. Kf2 {[%clk 0:02:16]}  Bf7 {[%clk 0:00:56]} 25. Bc3 {[%clk 0:02:13]}  Re8 {[%clk 0:00:52]} 26. Qxg2 {[%clk 0:02:10]}  Rxe1 {[%clk 0:00:49]} 27. Bxe1 {[%clk 0:02:11]}  Qh4+ {[%clk 0:00:47]} 28. Ke2 {[%clk 0:02:04]}  Qxd4 {[%clk 0:00:46]} 29. Bc3 {[%clk 0:02:03]}  Qf4 {[%clk 0:00:45]} 30. b3 {[%clk 0:01:40]}  Kg7 {[%clk 0:00:45]} 31. Qf2 {[%clk 0:01:35]}  b6 {[%clk 0:00:41]} 32. Be4 {[%clk 0:01:32]}  c5 {[%clk 0:00:40]} 33. Bd2 {[%clk 0:01:25]}  Qd6 {[%clk 0:00:38]} 34. Qe3 {[%clk 0:01:25]}  Ne6 {[%clk 0:00:37]} 35. Qh6+ {[%clk 0:01:16]}  Kg8 {[%clk 0:00:37]} 36. Kf2 {[%clk 0:01:17]}  Qd4+ {[%clk 0:00:32]} 37. Ke2 {[%clk 0:01:12]}  f5 {[%clk 0:00:20]} 38. Bd5 {[%clk 0:01:10]}  Nf8 {[%clk 0:00:19]} 39. Bxf7+ {[%clk 0:01:06]}  Kxf7 {[%clk 0:00:20]} 40. Qh2 {[%clk 0:01:07]}  Nd7 {[%clk 0:00:17]} 41. Qh7+ {[%clk 0:01:04]}  Qg7 {[%clk 0:00:15]} 42. Qh4 {[%clk 0:01:05]}  Qe5+ {[%clk 0:00:14]} 43. Kd3 {[%clk 0:01:02]}  Nf6 {[%clk 0:00:13]} 44. Bc3 {[%clk 0:00:59]}  Qd6+ {[%clk 0:00:13]} 45. Kc2 {[%clk 0:00:59]}  Qe6 {[%clk 0:00:12]} 46. Kb2 {[%clk 0:00:56]}  a6 {[%clk 0:00:11]} 47. a4 {[%clk 0:00:55]}  a5 {[%clk 0:00:07]} 48. Qh2 {[%clk 0:00:55]}  Qe7 {[%clk 0:00:05]} 49. Qh8 {[%clk 0:00:54]}  Qe2+ {[%clk 0:00:02]} 50. Ka3 {[%clk 0:00:54]}  Qe6 {[%clk 0:00:02]} 51. Qb8 {[%clk 0:00:51]}  Nd7 {[%clk 0:00:02]} 52. Qc7 {[%clk 0:00:49]}  Ke8 {[%clk 0:00:02]} 53. f4 {[%clk 0:00:47]}  Qe7 {[%clk 0:00:02]} 54. Qc6 {[%clk 0:00:46]}  Kf7 {[%clk 0:00:02]} 55. Qh1 {[%clk 0:00:38]}  Qe6 {[%clk 0:00:02]} 56. Qh7+ {[%clk 0:00:34]}  Ke8 {[%clk 0:00:02]} 57. Qg7 {[%clk 0:00:34]}  Nf8 {[%clk 0:00:02]} 58. Be5 {[%clk 0:00:20]}  Qf7 {[%clk 0:00:02]} 59. Qh6 {[%clk 0:00:20]}  Ne6 {[%clk 0:00:02]} 60. Qh1 {[%clk 0:00:21]}  Qe7 {[%clk 0:00:02]} 61. Qa8+ {[%clk 0:00:19]}  Kf7 {[%clk 0:00:02]} 62. Qh8 {[%clk 0:00:19]}  Nd4 {[%clk 0:00:02]} 63. Qg7+ {[%clk 0:00:18]}  Ke8 {[%clk 0:00:02]} 64. Qxg6+ {[%clk 0:00:19]}  Kd7 {[%clk 0:00:02]} 65. Qxb6 {[%clk 0:00:18]}  Nc2+ {[%clk 0:00:02]} 66. Kb2 {[%clk 0:00:18]}  Nb4 {[%clk 0:00:03]} 67. Qxa5 {[%clk 0:00:14]}  Nd3+ {[%clk 0:00:02]} 68. Kc3 {[%clk 0:00:15]}  Nxe5 {[%clk 0:00:03]} 69. Qa7+ {[%clk 0:00:15]}  Ke6 {[%clk 0:00:03]} 70. Qxe7+ {[%clk 0:00:16]}  Kxe7 {[%clk 0:00:04]} 71. fxe5 {[%clk 0:00:17]}  Ke6 {[%clk 0:00:05]} 72. a5 {[%clk 0:00:17]}  Kxe5 {[%clk 0:00:05]} 73. a6 {[%clk 0:00:18]}  Kd6 {[%clk 0:00:05]} 74. a7 {[%clk 0:00:18]} 1-0


[Site "https://www.chess.com"]

[Event "Titled Tuesday Blitz January 03 Late 2023"]
[White "Remizov, Yaroslav"]
[Black "Domingo Nunez, Alejandro"]
[WhiteFideId "34134015"]
[BlackFideId "22245561"]
[WhiteElo "2421"]
[BlackElo "2338"]
[Result "0-1"]
[Round "05"]
[TimeControl "180+2"]
[Date "2023.01.03"]
[WhiteClock "0:00:01"]
[BlackClock "0:00:13"]

1. e4 {[%clk 0:02:57]}  g6 {[%clk 0:02:59]} 2. g3 {[%clk 0:02:56]}  Bg7 {[%clk 0:03:00]} 3. Bg2 {[%clk 0:02:56]}  c5 {[%clk 0:02:56]} 4. Ne2 {[%clk 0:02:54]}  Nc6 {[%clk 0:02:57]} 5. O-O {[%clk 0:02:54]}  e6 {[%clk 0:02:57]} 6. c3 {[%clk 0:02:52]}  d5 {[%clk 0:02:57]} 7. d3 {[%clk 0:02:35]}  Nge7 {[%clk 0:02:55]} 8. Qc2 {[%clk 0:02:34]}  O-O {[%clk 0:02:53]} 9. Nd2 {[%clk 0:02:30]}  e5 {[%clk 0:02:52]} 10. exd5 {[%clk 0:02:28]}  Nxd5 {[%clk 0:02:52]} 11. Ne4 {[%clk 0:02:23]}  b6 {[%clk 0:02:44]} 12. a3 {[%clk 0:02:06]}  Bf5 {[%clk 0:02:28]} 13. Rd1 {[%clk 0:01:49]}  Rc8 {[%clk 0:02:27]} 14. h3 {[%clk 0:01:42]}  h6 {[%clk 0:02:24]} 15. Kh2 {[%clk 0:01:37]}  Be6 {[%clk 0:02:22]} 16. Qa4 {[%clk 0:01:29]}  f5 {[%clk 0:02:03]} 17. Nd2 {[%clk 0:01:29]}  Qd7 {[%clk 0:01:43]} 18. b4 {[%clk 0:01:18]}  cxb4 {[%clk 0:01:22]} 19. axb4 {[%clk 0:01:15]}  Nde7 {[%clk 0:01:23]} 20. Ba3 {[%clk 0:00:43]}  Rfd8 {[%clk 0:01:12]} 21. Nf3 {[%clk 0:00:32]}  Qc7 {[%clk 0:00:58]} 22. d4 {[%clk 0:00:26]}  e4 {[%clk 0:00:56]} 23. Ne1 {[%clk 0:00:16]}  Qb7 {[%clk 0:00:43]} 24. Nf4 {[%clk 0:00:15]}  b5 {[%clk 0:00:41]} 25. Qc2 {[%clk 0:00:11]}  Bf7 {[%clk 0:00:37]} 26. Qb1 {[%clk 0:00:07]}  g5 {[%clk 0:00:34]} 27. Ne2 {[%clk 0:00:07]}  Bc4 {[%clk 0:00:31]} 28. Ng1 {[%clk 0:00:06]}  Nd5 {[%clk 0:00:31]} 29. Bb2 {[%clk 0:00:05]}  Re8 {[%clk 0:00:26]} 30. Nc2 {[%clk 0:00:05]}  Bd3 {[%clk 0:00:23]} 31. Rxd3 {[%clk 0:00:05]}  exd3 {[%clk 0:00:24]} 32. Bxd5+ {[%clk 0:00:05]}  Kh8 {[%clk 0:00:23]} 33. Ne3 {[%clk 0:00:06]}  Qd7 {[%clk 0:00:20]} 34. Bg2 {[%clk 0:00:03]}  f4 {[%clk 0:00:18]} 35. gxf4 {[%clk 0:00:03]}  gxf4 {[%clk 0:00:19]} 36. Ng4 {[%clk 0:00:04]}  h5 {[%clk 0:00:18]} 37. Qxd3 {[%clk 0:00:02]}  hxg4 {[%clk 0:00:18]} 38. hxg4 {[%clk 0:00:03]}  Ne5 {[%clk 0:00:18]} 39. Qh3+ {[%clk 0:00:02]}  Kg8 {[%clk 0:00:17]} 40. dxe5 {[%clk 0:00:03]}  Rxe5 {[%clk 0:00:16]} 41. Nf3 {[%clk 0:00:03]}  Re6 {[%clk 0:00:16]} 42. g5 {[%clk 0:00:03]}  Qf7 {[%clk 0:00:15]} 43. Rd1 {[%clk 0:00:03]}  Rce8 {[%clk 0:00:16]} 44. Nd4 {[%clk 0:00:02]}  Re5 {[%clk 0:00:15]} 45. g6 {[%clk 0:00:02]}  Qxg6 {[%clk 0:00:16]} 46. Bf3 {[%clk 0:00:02]}  Rg5 {[%clk 0:00:16]} 47. Nc6 {[%clk 0:00:01]}  Qf6 {[%clk 0:00:15]} 48. Be4 {[%clk 0:00:01]}  Rxe4 {[%clk 0:00:14]} 49. Rd8+ {[%clk 0:00:01]}  Kf7 {[%clk 0:00:13]} 0-1


[Site "https://www.chess.com"]

[Event "Titled Tuesday Blitz January 03 Late 2023"]
[White "Sanal, Vahap"]
[Black "Abrahamyan, Tatev"]
[WhiteFideId "6300545"]
[BlackFideId "13301918"]
[WhiteElo "2600"]
[BlackElo "2294"]
[Result "0-1"]
[Round "05"]
[TimeControl "180+2"]
[Date "2023.01.03"]
[WhiteClock "0:00:01"]
[BlackClock "0:00:06"]

1. e4 {[%clk 0:02:28]}  e6 {[%clk 0:02:58]} 2. d3 {[%clk 0:02:26]}  d5 {[%clk 0:02:59]} 3. Nd2 {[%clk 0:02:26]}  Nf6 {[%clk 0:02:59]} 4. g3 {[%clk 0:02:24]}  c5 {[%clk 0:02:57]} 5. Bg2 {[%clk 0:02:23]}  Nc6 {[%clk 0:02:57]} 6. Ngf3 {[%clk 0:02:22]}  Be7 {[%clk 0:02:57]} 7. O-O {[%clk 0:02:22]}  b6 {[%clk 0:02:57]} 8. Qe2 {[%clk 0:02:21]}  Bb7 {[%clk 0:02:56]} 9. e5 {[%clk 0:02:21]}  Nd7 {[%clk 0:02:56]} 10. c4 {[%clk 0:02:22]}  dxc4 {[%clk 0:02:52]} 11. dxc4 {[%clk 0:02:21]}  Qc7 {[%clk 0:02:52]} 12. Re1 {[%clk 0:02:21]}  g5 {[%clk 0:02:41]} 13. Ne4 {[%clk 0:01:49]}  g4 {[%clk 0:02:27]} 14. Nh4 {[%clk 0:01:34]}  Ndxe5 {[%clk 0:02:15]} 15. Bf4 {[%clk 0:01:31]}  Nd4 {[%clk 0:01:44]} 16. Qe3 {[%clk 0:01:12]}  O-O-O {[%clk 0:00:46]} 17. Nc3 {[%clk 0:01:05]}  f6 {[%clk 0:00:29]} 18. Rec1 {[%clk 0:00:40]}  Bxg2 {[%clk 0:00:27]} 19. Nxg2 {[%clk 0:00:40]}  Ndf3+ {[%clk 0:00:26]} 20. Kh1 {[%clk 0:00:40]}  Qb7 {[%clk 0:00:24]} 21. Rd1 {[%clk 0:00:37]}  h5 {[%clk 0:00:24]} 22. Bxe5 {[%clk 0:00:20]}  Nxe5 {[%clk 0:00:23]} 23. Qe2 {[%clk 0:00:17]}  h4 {[%clk 0:00:22]} 24. Rxd8+ {[%clk 0:00:15]}  Bxd8 {[%clk 0:00:22]} 25. Qe4 {[%clk 0:00:12]}  hxg3 {[%clk 0:00:18]} 26. fxg3 {[%clk 0:00:11]}  Nf3 {[%clk 0:00:18]} 27. h4 {[%clk 0:00:11]}  gxh3 {[%clk 0:00:18]} 28. Nf4 {[%clk 0:00:09]}  Qxe4 {[%clk 0:00:16]} 29. Nxe4 {[%clk 0:00:10]}  e5 {[%clk 0:00:16]} 30. Nd5 {[%clk 0:00:05]}  Nd4 {[%clk 0:00:15]} 31. Rf1 {[%clk 0:00:05]}  f5 {[%clk 0:00:16]} 32. Nd6+ {[%clk 0:00:05]}  Kd7 {[%clk 0:00:15]} 33. Nxf5 {[%clk 0:00:05]}  Rf8 {[%clk 0:00:15]} 34. Nfe3 {[%clk 0:00:04]}  Rxf1+ {[%clk 0:00:14]} 35. Nxf1 {[%clk 0:00:04]}  Ke6 {[%clk 0:00:14]} 36. Kh2 {[%clk 0:00:05]}  Kf5 {[%clk 0:00:13]} 37. Kxh3 {[%clk 0:00:04]}  Ke4 {[%clk 0:00:13]} 38. g4 {[%clk 0:00:05]}  Kd3 {[%clk 0:00:12]} 39. b4 {[%clk 0:00:05]}  cxb4 {[%clk 0:00:12]} 40. Kg3 {[%clk 0:00:01]}  Kxc4 {[%clk 0:00:12]} 41. Nfe3+ {[%clk 0:00:02]}  Kd3 {[%clk 0:00:12]} 42. Nf5 {[%clk 0:00:02]}  e4 {[%clk 0:00:12]} 43. Kf4 {[%clk 0:00:01]}  Ne2+ {[%clk 0:00:12]} 44. Ke5 {[%clk 0:00:01]}  Nc3 {[%clk 0:00:12]} 45. Nf4+ {[%clk 0:00:01]}  Kd2 {[%clk 0:00:12]} 46. Ne6 {[%clk 0:00:02]}  e3 {[%clk 0:00:08]} 47. Nxe3 {[%clk 0:00:01]}  Bh4 {[%clk 0:00:06]} 0-1


[Site "https://www.chess.com"]